bitfinex-derivatives/quotes_ETHF0:USTF0_20251203
["timestamp","ask_amount","ask_price","bid_price","bid_amount"]
[1764784089052,1.0314,3132.0,3130.5,3.2078]
[1764784089053,4.2392,3132.0,3130.5,3.2078]
[1764784089254,4.2392,3132.0,3130.7,3.2078]
[1764784089255,3.2078,3131.6,3130.7,3.2078]
[1764784089439,3.2078,3131.8,3130.8,3.2078]
[1764784089847,3.2078,3131.0,3130.3,3.2078]
[1764784090052,0.0025667,3131.0,3130.3,3.2078]
[1764784090244,0.0025667,3131.0,3130.7,3.2078]
[1764784090745,0.0025667,3131.0,3130.0,0.00479432]
[1764784090746,1.0314,3130.4,3130.0,0.00479432]
[1764784090944,1.0314,3130.4,3129.3,3.2078]
[1764784090945,3.2078,3130.1,3129.3,3.2078]
[1764784091342,3.2078,3129.6,3128.9,3.2078]
[1764784091542,0.01698223,3129.3,3128.8,0.00333286]
[1764784091742,0.01698223,3129.3,3129.2,1.94823539]
[1764784091948,0.03396446,3129.3,3129.2,1.94823539]
[1764784092343,0.00476746,3129.6,3128.9,5.74804409]
[1764784092543,0.00476746,3129.6,3129.5,3.2078]
[1764784093055,1.03616746,3129.6,3129.1,3.2078]
[1764784093254,1.03616746,3129.6,3129.5,3.2078]
[1764784094345,10.24396746,3129.6,3128.9,0.00479432]
[1764784094550,3.2078,3129.2,3128.9,0.00479432]
[1764784094746,1.0314,3128.8,3128.5,3.2078]
[1764784095751,1.03497437,3128.8,3128.5,3.21082363]
[1764784095952,3.2078,3128.6,3128.3,0.00479432]
[1764784096149,4.24277437,3128.8,3128.1,3.2078]
[1764784096553,4.24277437,3128.8,3127.6,3.2078]
[1764784096952,4.24277437,3128.8,3127.8,2.53544977]
[1764784097148,1.03497437,3128.8,3128.1,3.2078]
[1764784097345,3.2078,3128.6,3128.1,3.2078]
[1764784098052,1.03497437,3128.8,3128.5,3.2078]
[1764784098245,0.00357437,3128.8,3128.5,3.18963304]
[1764784098851,4.24396746,3129.6,3128.5,3.18963304]
[1764784099049,0.01644234,3129.1,3129.0,3.2078]
[1764784099346,0.02466351,3129.1,3129.0,3.2078]
[1764784099754,0.03288468,3129.1,3129.0,3.2078]
[1764784099954,0.0365288,3129.1,3129.0,3.2078]
[1764784100154,0.0393332,3129.1,3129.0,3.2078]
[1764784103054,0.00476746,3129.6,3129.0,9.2078]
[1764784103257,1.0314,3130.4,3129.5,3.2078]
[1764784103452,3.2078,3130.1,3129.1,3.2078]
[1764784103860,4.2392,3129.7,3129.1,3.2078]
[1764784104058,3.21010958,3129.7,3129.1,3.2078]
[1764784104262,0.0071039,3129.7,3129.6,3.2078]
[1764784105362,1.0314,3131.2,3130.3,0.15969]
[1764784105565,1.0314,3131.2,3130.7,3.2078]
[1764784105863,0.01443781,3131.0,3130.7,3.2078]
[1764784106253,0.01721821,3131.0,3130.7,3.21163039]
[1764784106458,0.02887562,3130.9,3130.7,3.21163039]
[1764784106865,3.2078,3131.9,3130.7,3.21163039]
[1764784107056,3.2078,3131.9,3130.7,3.37130039]
[1764784107357,3.2078,3131.9,3130.8,0.15967]
[1764784107751,1.03382365,3131.8,3131.1,3.2078]
[1764784108156,3.2078,3131.5,3130.7,0.00383039]
[1764784108856,4.2392,3131.1,3130.7,0.00383039]
[1764784109461,10.2392,3131.1,3130.5,0.00479432]
[1764784109662,1.0314,3130.4,3129.8,3.2078]
[1764784109859,1.0314,3130.4,3129.4,6.9928]
[1764784110056,3.2078,3130.3,3129.4,7.15254]
[1764784110456,3.2078,3130.3,3129.4,6.9952681]
[1764784110659,1.0314,3129.7,3129.5,0.00479432]
[1764784111262,1.0314,3129.7,3129.0,3.2078]
[1764784112358,1.0314,3129.7,3129.0,3.21651981]
[1764784112950,1.0314,3129.7,3129.0,3.37627981]
[1764784113564,3.2078,3130.0,3129.6,0.15973]
[1764784113760,3.2078,3130.0,3129.6,0.14717011]
[1764784113963,1.0314,3130.4,3129.6,3.35497011]
[1764784114967,1.0314,3130.4,3130.0,3.2078]
[1764784115166,0.01255989,3130.2,3130.0,3.2078]
[1764784115662,1.0314,3130.4,3129.6,3.2078]
[1764784115864,0.9907,3129.7,3129.6,3.2078]
[1764784116365,0.9907,3129.7,3129.6,4.0466554]
[1764784116366,0.0299355,3129.7,3129.6,4.0466554]
[1764784116562,0.0299355,3129.7,3129.6,3.2078]
[1764784116757,0.03135036,3129.7,3129.6,3.2078]
[1764784116958,0.01793133,3129.7,3129.6,4.33340931]
[1764784117163,0.01793133,3129.7,3129.6,3.2078]
[1764784117568,0.01793133,3129.7,3129.6,4.32542729]
[1764784118968,0.99863133,3129.7,3129.6,4.04615082]
[1764784119169,0.99863133,3129.7,3129.6,3.2078]
[1764784119370,0.99863133,3129.7,3129.6,4.04615082]
[1764784120073,0.99863133,3129.7,3129.6,3.2078]
[1764784121367,4.27853133,3129.7,3129.6,3.2078]
[1764784121769,0.99863133,3129.7,3129.6,3.2078]
[1764784122767,4.29415794,3129.7,3129.6,3.2078]
[1764784122969,4.30978455,3129.7,3129.6,3.2078]
[1764784123375,0.06184158,3129.7,3129.6,3.2078]
[1764784123577,0.06184158,3129.7,3129.6,4.8029]
[1764784123869,0.06184158,3129.7,3129.6,6.55773]
[1764784124071,0.06184158,3129.7,3129.6,7.39608082]
[1764784124465,0.06184158,3129.7,3129.6,6.55773]
[1764784125062,0.06184158,3129.7,3129.6,7.67535729]
[1764784125579,4.2392,3130.4,3129.7,0.15972]
[1764784125580,1.0314,3130.4,3129.7,0.15972]
[1764784125874,3.2078,3130.8,3130.2,3.2078]
[1764784126277,3.2078,3130.8,3130.2,4.04680074]
[1764784126579,3.2078,3130.8,3130.3,0.83900074]
[1764784126773,3.2078,3130.8,3130.6,1.93865705]
[1764784127074,1.03619432,3131.1,3130.6,2.77765779]
[1764784127274,1.03619432,3131.1,3130.7,4.04680074]
[1764784127467,1.03619432,3131.1,3130.8,0.83900074]
[1764784127866,0.00479432,3131.1,3130.9,0.83900074]
[1764784128376,0.00479432,3131.1,3131.0,0.83900074]
[1764784128783,0.00479432,3131.1,3131.0,4.02920074]
[1764784129465,0.00479432,3131.1,3131.0,4.30886765]
[1764784129676,1.03382365,3131.8,3131.0,3.34986]
[1764784129872,3.2799,3131.7,3131.6,3.2078]
[1764784130178,1.6358,3131.7,3131.6,3.21012042]
[1764784130974,0.00242365,3131.8,3131.6,5.64423573]
[1764784131370,0.00242365,3131.8,3131.7,3.1902]
[1764784131671,0.00242365,3131.8,3131.6,3.21012042]
[1764784131876,3.2799,3131.7,3131.6,0.00232042]
[1764784132275,3.2078,3133.1,3131.9,3.1902]
[1764784132577,3.2799,3132.4,3132.3,5.14645705]
[1764784132768,0.9807,3132.6,3132.3,5.14645705]
[1764784133169,3.2078,3133.1,3132.5,3.1902]
[1764784133371,3.2078,3133.1,3133.0,1.5951]
[1764784133372,3.21082443,3133.1,3133.0,1.5951]
[1764784133571,4.84662443,3133.1,3132.8,2.09822705]
[1764784133772,1.6358,3132.9,3132.8,2.09822705]
[1764784133972,1.6358,3132.9,3132.5,0.00479432]
[1764784134179,3.21082443,3133.1,3132.5,0.00479432]
[1764784134377,0.00302443,3133.1,3132.5,0.00479432]
[1764784134579,0.00302443,3133.1,3132.7,3.2078]
[1764784135584,3.2799,3132.8,3132.7,3.2078]
[1764784135881,1.6358,3132.8,3132.7,3.2078]
[1764784136077,3.2799,3132.8,3132.7,3.2078]
[1764784136277,4.2606,3132.6,3132.5,0.00479432]
[1764784137482,1.6358,3132.6,3132.5,0.00479432]
[1764784137680,2.6165,3132.6,3132.5,0.00479432]
[1764784137977,4.2606,3132.6,3132.5,0.00479432]
[1764784141376,3.2078,3132.9,3132.8,3.1902]
[1764784141583,0.00302443,3133.1,3133.0,3.1902]
[1764784141978,0.00302443,3133.1,3132.9,0.15956]
[1764784142580,0.00302443,3133.1,3132.8,4.8029]
[1764784142785,1.6358,3132.9,3132.8,3.2078]
[1764784143080,3.2799,3132.9,3132.8,3.2078]
[1764784143782,3.2799,3132.9,3132.5,0.00479432]
[1764784143783,4.3437,3132.6,3132.5,0.00479432]
[1764784144879,4.2286,3132.0,3131.9,3.2078]
[1764784145078,0.9716,3132.6,3131.9,4.3839]
[1764784145285,0.9716,3132.6,3132.3,3.2078]
[1764784145582,0.9716,3132.6,3131.8,3.2078]
[1764784145583,3.257,3132.4,3131.8,3.2078]
[1764784145884,3.257,3131.9,3131.8,3.21259432]
[1764784147389,1.5207,3131.9,3131.8,3.21259432]
[1764784147784,0.9716,3132.0,3131.8,3.21259432]
[1764784148288,0.00479432,3132.4,3131.9,2.3523]
[1764784148494,0.00479432,3132.4,3132.2,3.2078]
[1764784148992,0.00479432,3132.4,3132.3,2.3523]
[1764784150392,3.2078,3133.7,3133.0,2.3523]
[1764784153391,0.9716,3133.2,3132.9,3.36736]
[1764784153586,0.9716,3133.2,3133.0,1.1761]
[1764784153985,3.257,3133.0,3132.9,3.2078]
[1764784154191,3.257,3133.0,3132.5,3.2078]
[1764784154590,3.257,3133.0,3132.5,4.04189971]
[1764784154893,0.9716,3132.6,3132.1,4.20149971]
[1764784155083,0.9716,3133.2,3132.5,5.5601]
[1764784155793,0.9716,3133.2,3132.5,4.3839]
[1764784155987,2.4923,3132.6,3132.5,3.2078]
[1764784156186,4.2286,3132.6,3132.5,3.2078]
[1764784157295,4.2286,3132.6,3132.3,0.83409971]
[1764784158496,1.5207,3132.4,3132.3,0.83409971]
[1764784158691,0.9716,3132.6,3132.3,0.83409971]
[1764784159196,0.9716,3132.6,3132.4,0.83409971]
[1764784159490,1.5207,3132.5,3132.4,0.83970908]
[1764784159696,0.9716,3132.6,3132.4,1.1761]
[1764784159895,0.9716,3133.2,3132.5,3.19199877]
[1764784160593,0.9716,3133.2,3132.5,2.01579877]
[1764784160798,1.5207,3132.6,3132.5,0.83969877]
[1764784161000,0.9716,3133.2,3132.5,2.01579877]
[1764784161200,1.5207,3132.6,3132.5,2.01579877]
[1764784161802,3.257,3132.6,3132.5,0.83969877]
[1764784162002,1.5207,3132.6,3132.5,0.83969877]
[1764784162302,1.5207,3132.6,3132.4,1.11868708]
[1764784162694,4.2286,3132.5,3132.4,1.11868708]
[1764784163397,0.9716,3132.5,3132.4,2.29478708]
[1764784163798,0.9716,3133.2,3132.4,3.47098708]
[1764784163999,0.9716,3133.2,3132.6,0.84065834]
[1764784164402,3.257,3132.7,3132.6,0.84065834]
[1764784166596,3.2078,3134.4,3133.0,2.51186]
[1764784166796,3.2078,3134.4,3133.0,5.71966]
[1764784166997,3.257,3133.7,3133.6,0.83986867]
[1764784167797,3.25938187,3133.7,3133.6,0.83986867]
[1764784169006,1.52308187,3133.7,3133.6,2.01596867]
[1764784169199,0.00238187,3133.7,3133.6,3.19216867]
[1764784169502,0.9716,3134.5,3133.6,1.11982489]
[1764784169703,4.2286,3134.0,3133.9,3.2078]
[1764784170294,3.257,3133.6,3133.5,4.0467589]
[1764784170495,3.257,3133.6,3133.3,0.00479432]
[1764784170496,3.257,3133.4,3133.3,0.00479432]
[1764784170792,0.8144,3133.5,3132.9,3.2078]
[1764784170996,0.8144,3133.5,3132.9,6.548]
[1764784171198,1.5207,3133.0,3132.9,6.548]
[1764784171403,3.257,3133.0,3132.9,3.21162525]
[1764784172910,4.2286,3133.0,3132.9,0.00382525]
[1764784182312,3.1986,3133.0,3132.9,0.00382525]
[1764784184506,4.1424,3133.0,3132.9,0.00382525]
[1764784186216,3.1986,3132.7,3132.6,0.00478622]
[1764784186705,3.1986,3132.7,3131.9,1.67973734]
[1764784186706,0.9438,3132.5,3131.9,4.33112489]
[1764784186908,1.5993,3132.0,3131.9,4.33112489]
[1764784187112,1.5993,3132.0,3131.9,4.3334193]
[1764784187313,1.5993,3132.0,3131.9,3.21359441]
[1764784187905,4.1424,3132.0,3131.9,0.00229441]
[1764784188819,3.2078,3132.7,3132.0,0.9706]
[1764784189015,3.2078,3132.7,3132.1,1.12019608]
[1764784189215,0.9438,3133.0,3132.6,4.33149608]
[1764784189518,0.9438,3133.0,3132.7,1.12019608]
[1764784189816,1.5993,3132.8,3132.7,2.76619608]
[1764784190019,3.1986,3132.7,3132.6,1.12019608]
[1764784190213,3.1986,3132.6,3132.4,1.12019608]
[1764784190411,1.5993,3132.5,3132.4,3.2113]
[1764784191020,0.9438,3133.0,3132.4,3.2113]
[1764784191322,0.9438,3133.0,3132.5,4.3274725]
[1764784192719,0.9438,3133.0,3132.3,1.1196725]
[1764784192720,3.1986,3132.4,3132.3,1.1196725]
[1764784192916,3.1986,3132.3,3132.2,4.3274725]
[1764784193625,3.1986,3132.3,3132.2,3.2078]
[1764784193824,0.9438,3132.5,3132.4,1.646]
[1764784193825,3.1986,3132.5,3132.4,1.646]
[1764784194221,3.2078,3132.7,3132.2,3.2113]
[1764784194523,1.5993,3132.3,3132.2,3.2113]
[1764784194824,1.5993,3132.3,3132.2,7.5387725]
[1764784195015,0.9438,3133.0,3132.2,7.5387725]
[1764784196428,0.9438,3133.0,3132.2,7.6983725]
[1764784196721,0.9438,3133.0,3132.2,4.4905725]
[1764784196931,0.9438,3133.0,3132.2,7.6983725]
[1764784197226,0.9438,3133.0,3132.3,1.1196725]
[1764784197929,3.2078,3133.1,3132.5,2.0902725]
[1764784198425,1.5993,3133.1,3133.0,3.2113]
[1764784198623,3.1986,3133.1,3133.0,1.646]
[1764784199814,3.1986,3133.1,3132.7,1.1196725]
[1764784200330,1.5993,3132.9,3132.8,4.3309725]
[1764784200635,3.1986,3132.7,3132.4,1.67973734]
[1764784200827,3.1986,3132.7,3131.8,2.81203155]
[1764784200828,0.15961,3132.0,3130.8,3.2078]
[1764784201029,3.1986,3131.2,3130.8,3.2078]
[1764784201424,0.15962,3131.9,3131.1,5.00511]
[1764784201634,3.2078,3131.5,3131.1,5.00511]
[1764784201930,3.1986,3131.2,3131.1,1.79737362]
[1764784202819,1.5993,3130.5,3130.4,3.2078]
[1764784203018,3.1986,3130.5,3130.4,3.2078]
[1764784203825,3.1986,3130.5,3130.4,3.21176076]
[1764784204228,3.2078,3131.0,3130.5,0.9554]
[1764784204423,3.21186641,3131.5,3130.5,0.9554]
[1764784204625,3.21186641,3131.5,3130.4,3.21176076]
[1764784204626,3.2354,3130.5,3130.4,3.21176076]
[1764784204928,3.2354,3130.5,3130.4,0.00396076]
[1764784205732,3.2354,3130.2,3130.1,0.00478622]
[1764784206035,3.2354,3129.6,3129.1,3.2078]
[1764784206827,3.2354,3129.6,3129.1,3.21096292]
[1764784207133,1.6621,3129.2,3129.1,3.21096292]
[1764784207331,3.23948257,3129.2,3129.1,3.21096292]
[1764784207533,3.2354,3129.1,3129.0,0.00478622]
[1764784208425,0.0479859,3129.2,3129.1,3.3136]
[1764784208633,0.0479859,3129.2,3129.1,6.52452994]
[1764784208829,3.2833859,3129.2,3129.1,0.00312994]
[1764784209634,0.0479859,3129.2,3129.1,3.31672994]
[1764784209827,3.2833859,3129.2,3129.1,0.00312994]
[1764784210428,3.2833859,3129.2,3128.6,3.2078]
[1764784210429,3.2354,3128.7,3128.6,3.2078]
[1764784210624,3.27930333,3128.7,3128.6,3.2078]
[1764784210829,3.27930333,3128.7,3128.1,3.2078]
[1764784211025,1.6621,3128.2,3128.1,3.2078]
[1764784211330,3.2354,3128.2,3128.1,0.00348313]
[1764784211534,3.27930333,3128.2,3128.1,0.00348313]
[1764784212030,3.2354,3127.9,3127.8,0.00323572]
[1764784212631,1.6621,3127.3,3127.2,3.2078]
[1764784213141,0.04390333,3127.9,3127.8,1.6407]
[1764784213633,0.04390333,3127.9,3127.8,4.269]
[1764784214128,3.2078,3129.0,3128.1,3.3136]
[1764784214331,3.2078,3129.0,3128.4,0.9554]
[1764784215238,3.21259402,3129.0,3128.4,0.96019402]
[1764784215431,3.2354,3128.5,3128.4,0.00479402]
[1764784216840,3.2354,3127.8,3127.7,3.2078]
[1764784217540,1.6621,3127.4,3127.3,4.8485]
[1764784217730,3.2354,3127.4,3127.3,3.2078]
[1764784217932,3.2078,3128.0,3127.3,4.8485]
[1764784218132,3.2078,3128.0,3127.9,1.6407]
[1764784218332,3.2078,3128.0,3127.9,3.3136]
[1764784218527,3.2078,3128.7,3127.9,3.3136]
[1764784218736,3.2078,3128.3,3127.9,3.3136]
[1764784218939,3.2078,3128.7,3127.9,3.3136]
[1764784219631,1.6621,3128.0,3127.8,0.9554]
[1764784219837,3.2078,3128.6,3127.9,4.8485]
[1764784222135,1.6621,3127.9,3127.8,0.9554]
[1764784222338,1.6621,3127.9,3127.5,4.1632]
[1764784222339,3.2354,3127.9,3127.5,4.1632]
[1764784222533,1.6621,3127.6,3127.5,4.1632]
[1764784222735,3.2078,3128.2,3127.5,7.4768]
[1764784223445,3.36758,3128.6,3127.5,7.4768]
[1764784223831,3.2078,3128.6,3127.6,1.93788999]
[1764784226143,3.2078,3128.6,3128.5,4.269]
[1764784226643,3.21259402,3129.0,3128.9,3.3136]
[1764784226945,0.00479402,3129.0,3128.9,6.5214]
[1764784229346,1.66689402,3129.0,3128.9,4.8485]
[1764784230044,3.24019402,3129.0,3128.9,3.2078]
[1764784230245,1.6621,3128.6,3128.5,0.9554]
[1764784231836,1.6621,3128.6,3128.5,2.5961]
[1764784232037,3.21259402,3129.0,3128.5,2.5961]
[1764784232747,6.44799402,3129.0,3128.5,0.9554]
[1764784232948,3.2354,3128.6,3128.5,0.9554]
[1764784233250,3.2354,3128.6,3128.1,3.2078]
[1764784233441,3.21259402,3129.0,3128.5,3.9951]
[1764784234049,3.21259402,3129.0,3128.9,3.0542]
[1764784235849,4.69059402,3129.0,3128.9,1.5212]
[1764784236351,6.29379402,3129.0,3128.7,0.15978]
[1764784236552,1.478,3128.8,3128.7,0.15978]
[1764784236738,1.478,3128.8,3128.7,1.5212]
[1764784237152,3.21259402,3129.0,3128.7,3.0542]
[1764784237850,4.69059402,3129.0,3128.9,1.5212]
[1764784238251,3.21259402,3129.0,3128.9,3.053]
[1764784238750,3.21259402,3129.0,3128.6,0.83890517]
[1764784238751,6.27919402,3129.0,3128.6,0.83890517]
[1764784238952,6.27919402,3129.0,3128.9,1.4632]
[1764784239144,3.21259402,3129.0,3128.9,2.995]
[1764784239846,6.27919402,3129.0,3128.9,1.4632]
[1764784240052,3.21259402,3129.0,3128.9,2.995]
[1764784240354,4.77539402,3129.0,3128.9,2.995]
[1764784240556,4.77539402,3129.0,3128.9,1.4632]
[1764784241451,4.77539402,3129.0,3128.9,2.995]
[1764784241654,6.27919402,3129.0,3128.9,1.4632]
[1764784242253,1.56759402,3129.0,3128.9,2.995]
[1764784242453,3.07139402,3129.0,3128.6,0.99868517]
[1764784243454,3.07139402,3129.0,3128.9,1.4632]
[1764784243658,1.56759402,3129.0,3128.9,2.995]
[1764784243858,3.07139402,3129.0,3128.9,1.4632]
[1764784244058,3.07139402,3129.0,3128.6,0.99868517]
[1764784244259,3.07139402,3129.0,3128.5,4.1487]
[1764784244260,3.0666,3128.6,3128.5,4.98760517]
[1764784244454,3.21259402,3129.0,3128.5,7.1437]
[1764784245147,3.0666,3128.6,3128.5,5.6119]
[1764784245854,3.0666,3128.6,3128.5,4.1487]
[1764784246062,3.0666,3128.6,3128.5,3.2078]
[1764784246358,3.21259402,3129.0,3128.5,3.9435]
[1764784246861,3.0666,3128.6,3128.5,2.4117]
[1764784247255,1.5628,3128.6,3128.5,3.9435]
[1764784247560,3.21259402,3129.0,3128.5,3.9435]
[1764784247757,3.21259402,3129.0,3128.3,2.30210517]
[1764784247758,1.5628,3128.4,3128.3,2.30210517]
[1764784248061,3.0666,3128.4,3128.3,2.30210517]
[1764784248357,3.0666,3128.4,3128.3,1.4632]
[1764784248763,1.5628,3128.4,3128.3,2.995]
[1764784249158,3.21259402,3129.0,3128.3,2.995]
[1764784249360,3.0666,3128.5,3128.4,2.30713196]
[1764784249864,1.5628,3128.5,3128.4,3.83893196]
[1764784250061,3.21259402,3129.0,3128.5,0.9485]
[1764784250362,3.21259402,3129.0,3128.5,1.79243196]
[1764784250765,3.21259402,3129.0,3128.5,0.9485]
[1764784252464,3.21259402,3129.0,3128.4,0.84393196]
[1764784252465,3.0666,3128.5,3128.4,0.84393196]
[1764784253057,1.5628,3128.4,3128.3,2.30713196]
[1764784253265,1.5628,3128.4,3128.3,2.995]
[1764784253966,3.0666,3128.4,3128.3,2.995]
[1764784254164,3.0666,3128.4,3128.3,1.4632]
[1764784254774,3.0666,3128.4,3128.3,2.995]
[1764784255071,1.5628,3128.4,3128.3,2.995]
[1764784255269,1.5628,3128.4,3128.3,4.11351469]
[1764784256070,1.5628,3128.4,3128.3,2.58171469]
[1764784256071,3.0666,3128.4,3128.3,2.58171469]
[1764784257075,3.0666,3128.4,3128.3,1.11851469]
[1764784257372,3.0666,3128.4,3128.3,2.58171469]
[1764784257671,3.0666,3128.4,3127.8,1.93788999]
[1764784257672,3.0666,3128.0,3127.9,2.30819019]
[1764784258179,3.0666,3127.8,3127.7,2.58171469]
[1764784258362,1.5628,3127.8,3127.7,2.995]
[1764784258563,3.2078,3128.4,3127.7,4.12197368]
[1764784258770,3.0666,3128.0,3127.9,2.3084294]
[1764784259270,3.0666,3127.7,3127.6,0.8452294]
[1764784259470,3.0666,3127.5,3127.4,0.8452294]
[1764784259670,3.0666,3127.3,3127.2,0.84753077]
[1764784259875,3.0666,3127.3,3127.2,0.00230137]
[1764784260378,1.5628,3127.3,3127.2,2.99730137]
[1764784261673,3.0666,3127.3,3127.2,0.00230137]
[1764784262669,3.0666,3127.3,3126.5,5.81900096]
[1764784262670,3.0666,3126.8,3126.5,5.0015294]
[1764784262969,3.0666,3126.4,3126.3,0.8452294]
[1764784263164,3.0532,3126.0,3125.9,0.8452294]
[1764784263369,2.8692,3125.8,3125.5,0.9485]
[1764784263769,0.00397839,3125.8,3125.7,2.986]
[1764784264071,0.00397839,3125.8,3125.7,6.1938]
[1764784264265,0.00479402,3127.0,3125.7,13.0390294]
[1764784264465,1.3788,3126.3,3126.2,3.2078]
[1764784264665,1.3788,3126.1,3126.0,2.2109]
[1764784264873,2.8692,3126.1,3126.0,2.2109]
[1764784265079,2.8692,3125.6,3125.5,0.00276476]
[1764784265269,6.08024999,3125.6,3125.5,0.00276476]
[1764784266373,0.6418,3125.5,3124.5,0.9485]
[1764784266575,3.2078,3125.0,3124.9,1.4006]
[1764784267077,4.5866,3125.0,3124.9,1.4006]
[1764784267272,6.077,3125.0,3124.9,0.00349754]
[1764784268366,6.6238,3125.0,3124.0,0.8103]
[1764784268676,3.2078,3124.6,3124.0,0.8103]
[1764784269384,1.4904,3123.6,3123.5,0.8103]
[1764784269575,1.3788,3122.7,3122.6,0.20438646]
[1764784269773,2.87316686,3122.7,3122.6,0.20722149]
[1764784270482,0.00396686,3122.7,3122.6,9.19322149]
[1764784270670,0.68059,3124.5,3123.2,2.986]
[1764784270671,3.2078,3123.7,3123.2,2.986]
[1764784270875,3.2078,3123.7,3123.2,1.4006]
[1764784271177,3.2078,3124.1,3123.6,3.7963]
[1764784271580,3.2078,3124.1,3123.0,0.8103]
[1764784271581,2.8692,3123.5,3123.0,0.8103]
[1764784271979,3.21069371,3124.1,3123.6,2.2109]
[1764784272280,3.21069371,3124.1,3124.0,1.4006]
[1764784272475,3.21069371,3124.1,3124.0,2.986]
[1764784273077,3.21069371,3124.1,3123.6,0.8103]
[1764784273078,4.58949371,3124.1,3123.6,0.8103]
[1764784273390,3.21069371,3124.1,3124.0,2.986]
[1764784273882,4.58949371,3124.1,3123.6,0.8103]
[1764784274882,4.58949371,3124.1,3123.2,3.2078]
[1764784274883,1.3788,3123.7,3123.2,3.2078]
[1764784275082,4.5866,3123.7,3123.2,3.2078]
[1764784275279,3.21069371,3124.1,3123.6,3.7963]
[1764784277488,3.21069371,3124.1,3123.6,2.2109]
[1764784277686,2.8692,3123.7,3123.2,3.2078]
[1764784277888,1.3788,3123.3,3123.2,3.2078]
[1764784278585,2.8692,3123.3,3123.2,3.2078]
[1764784278792,1.3788,3123.3,3123.2,4.6084]
[1764784279793,2.8692,3123.0,3122.7,3.2078]
[1764784280386,3.2078,3123.6,3122.9,1.40540223]
[1764784280387,40.8,3123.4,3122.9,1.40540223]
[1764784280590,40.8,3123.4,3123.0,0.8103]
[1764784281085,3.2078,3123.6,3123.0,0.8103]
[1764784281291,3.2078,3123.6,3123.5,3.7963]
[1764784281489,6.077,3123.6,3123.0,0.8103]
[1764784281689,1.3788,3123.1,3123.0,0.8103]
[1764784281893,2.8692,3123.1,3122.9,0.00480223]
[1764784282094,1.3788,3123.0,3122.9,0.00480223]
[1764784282393,3.2078,3123.6,3122.9,1.40540223]
[1764784282591,1.3788,3123.0,3122.9,0.00480223]
[1764784282792,3.2078,3123.6,3123.5,1.4006]
[1764784283090,2.8692,3123.0,3122.9,0.00480223]
[1764784283288,6.077,3123.0,3122.9,0.00480223]
[1764784283492,3.2078,3123.0,3122.9,2.99080223]
[1764784283792,3.2078,3123.0,3122.9,1.40540223]
[1764784283988,6.077,3123.0,3122.9,0.00480223]
[1764784286396,3.2078,3123.0,3122.9,2.99080223]
[1764784286789,3.2078,3123.5,3123.4,2.986]
[1764784287599,3.2078,3124.0,3123.5,0.8103]
[1764784288896,3.2078,3124.7,3124.1,2.986]
[1764784289484,3.2078,3125.1,3124.1,6.1938]
[1764784289684,4.5866,3125.1,3124.8,0.8103]
[1764784289883,2.8692,3124.7,3124.6,0.00480223]
[1764784290194,2.8692,3124.7,3124.6,1.40540223]
[1764784290195,6.077,3124.7,3124.6,1.40540223]
[1764784290390,0.5337,3126.5,3124.8,0.8103]
[1764784290391,3.2078,3125.5,3124.8,0.8103]
[1764784291397,3.21614106,3125.5,3124.8,0.81264461]
[1764784296095,3.2078,3125.1,3124.8,0.81264461]
[1764784296597,3.2078,3125.1,3125.0,3.0407]
[1764784297392,3.2078,3125.1,3124.8,0.81264461]
[1764784301399,3.2078,3125.1,3125.0,1.577]
[1764784301801,3.2078,3125.1,3125.0,3.1872]
[1764784303704,3.21614106,3125.5,3125.4,3.1176]
[1764784304297,0.00834106,3125.5,3125.4,3.1176]
[1764784304502,3.2078,3126.3,3125.5,0.903]
[1764784304702,0.31734374,3126.2,3126.0,0.903]
[1764784305500,0.32031819,3126.2,3126.0,0.903]
[1764784306097,0.00297445,3126.2,3126.0,0.903]
[1764784306311,0.00297445,3126.2,3125.5,0.903]
[1764784306911,0.00297445,3126.2,3126.1,1.5074]
[1764784308413,0.00297445,3126.2,3126.0,0.903]
[1764784308913,0.00297445,3126.2,3126.0,2.4104]
[1764784309413,0.00297445,3126.2,3126.0,0.903]
[1764784309610,0.00297445,3126.2,3125.5,0.903]
[1764784310411,3.2078,3125.7,3125.5,0.903]
[1764784311016,3.2078,3125.7,3124.9,3.2078]
[1764784311320,3.2078,3125.7,3125.5,0.903]
[1764784312118,3.2078,3125.7,3125.6,3.1176]
[1764784312317,3.2078,3125.7,3125.6,1.5074]
[1764784312618,3.2078,3125.7,3125.5,0.903]
[1764784314016,3.2078,3125.7,3124.9,3.2078]
[1764784315218,3.2078,3125.3,3124.8,2.32004461]
[1764784316122,0.3185399,3125.2,3124.8,2.32004461]
[1764784316326,3.2078,3125.3,3124.8,2.32004461]
[1764784317118,0.31880527,3125.2,3124.8,2.32004461]
[1764784319717,0.31880527,3125.2,3125.1,1.5074]
[1764784319925,0.31880527,3125.2,3125.1,3.1176]
[1764784320619,0.31880527,3125.2,3124.8,0.81264461]
[1764784320926,0.16,3124.3,3124.0,0.903]
[1764784321121,3.2078,3124.1,3124.0,0.903]
[1764784321816,3.2078,3124.1,3124.0,4.02317021]
[1764784322725,3.2078,3124.1,3124.0,0.90557021]
[1764784323321,3.2078,3124.1,3124.0,0.00257021]
[1764784324123,3.2078,3124.1,3124.0,0.89437021]
[1764784324316,40.8,3124.3,3124.2,2.9617]
[1764784324631,3.2078,3124.6,3124.5,3.8535]
[1764784324826,3.2078,3124.6,3124.0,4.94739961]
[1764784325025,3.2078,3124.6,3124.0,4.10217021]
[1764784325428,0.31844213,3124.5,3124.0,4.10217021]
[1764784325827,3.21260223,3124.6,3124.5,3.8535]
[1764784326127,3.21260223,3124.6,3124.5,0.8918]
[1764784326328,3.21260223,3124.6,3124.5,2.3455]
[1764784326530,3.21260223,3124.6,3124.5,3.8535]
[1764784327633,3.21260223,3124.6,3124.0,0.00257021]
[1764784327634,0.16001,3124.2,3124.0,0.00257021]
[1764784327820,3.52618424,3124.1,3123.7,0.00480223]
[1764784328018,0.31838424,3124.0,3122.6,1.04961586]